fUST/lending_fUST_20250204
["ID","MTS","AMOUNT","RATE_DAILY","PERIOD"]
[351517070,1738612234171,-500.0,0.00016438,2]
[351517072,1738612234181,-892.35,0.00016438,2]
[351517074,1738612234195,-2193.9,0.00016438,2]
[351517076,1738612234206,-238.41393043,0.00016438,2]
[351517077,1738612234216,-500.0,0.00016438,2]
[351517080,1738612234226,-500.0,0.00016438,2]
[351517081,1738612234236,-500.0,0.00016438,2]
[351517083,1738612234246,-500.0,0.00016438,2]
[351517085,1738612234258,-226.82758223,0.00016438,2]
[351517087,1738612234268,-500.0,0.00016438,2]
[351517090,1738612234280,-500.0,0.00016438,2]
[351517092,1738612234290,-1260.08,0.00016438,2]
[351517093,1738612234300,-3772.92,0.00016574,2]
[351517096,1738612234311,-500.0,0.00016574,2]
[351517098,1738612234321,-500.0,0.00016574,2]
[351517100,1738612234331,-500.0,0.00016574,2]
[351517101,1738612234341,-507.99029297,0.00016575,2]
[351517104,1738612234352,-500.0,0.00016575,2]
[351517106,1738612234362,-500.0,0.00016575,2]
[351517108,1738612234373,-500.0,0.00016575,2]
[351517109,1738612234383,-500.0,0.00016575,2]
[351517111,1738612234394,-500.0,0.00016575,2]
[351517113,1738612234404,-500.0,0.00016575,2]
[351517114,1738612234414,-500.0,0.00016575,2]
[351517115,1738612234424,-500.0,0.00016575,2]
[351517116,1738612234435,-500.0,0.00016575,2]
[351517117,1738612234445,-1392.0,0.00016575,2]
[351517118,1738612234454,-500.0,0.00016575,2]
[351517119,1738612234464,-500.0,0.00016575,2]
[351517120,1738612234473,-500.0,0.00016575,2]
[351517121,1738612234483,-500.0,0.00016575,2]
[351517122,1738612234492,-500.0,0.00016575,2]
[351517123,1738612234502,-746.02,0.00016575,2]
[351517124,1738612234511,-500.0,0.00016575,2]
[351517125,1738612234522,-1990.79,0.00016575,2]
[351517126,1738612234532,-8609.0,0.00016575,2]
[351517127,1738612234542,-500.0,0.00016575,2]
[351517128,1738612234552,-500.57,0.00016575,2]
[351517129,1738612234562,-500.0,0.00016575,2]
[351517130,1738612234571,-500.0,0.00016575,2]
[351517131,1738612234581,-500.0,0.00016575,2]
[351517132,1738612234591,-433.45187432,0.00016575,2]
[351517133,1738612234602,-799.29,0.00016575,2]
[351517134,1738612234612,-500.0,0.00016575,2]
[351517135,1738612234622,-528.23,0.00016575,2]
[351517136,1738612234633,-500.0,0.00016575,2]
[351517137,1738612234642,-500.0,0.00016575,2]
[351517138,1738612234656,-500.0,0.00016575,2]
[351517139,1738612234665,-1205.91,0.00016575,2]
[351517140,1738612234676,-500.0,0.00016575,2]
[351517141,1738612234687,-500.0,0.00016575,2]
[351517142,1738612234698,-444.94068341,0.00016575,2]
[351517143,1738612234712,-3926.23931659,0.00016575,2]
[351517144,1738612234722,-608.97090996,0.00016575,2]
[351517145,1738612234732,-500.0,0.00016575,2]
[351517146,1738612234742,-621.16,0.00016575,2]
[351517147,1738612234752,-500.0,0.00016575,2]
[351517148,1738612234762,-500.0,0.00016575,2]
[351517149,1738612234774,-510.49021339,0.00016575,2]
[351517150,1738612234784,-500.0,0.00016575,2]
[351517151,1738612234794,-694.09,0.00016575,2]
[351517152,1738612234806,-500.0,0.00016575,2]
[351517153,1738612234816,-500.0,0.00016575,2]
[351517154,1738612234826,-499.24290956,0.00016575,2]
[351517155,1738612234836,-500.0,0.00016575,2]
[351517156,1738612234847,-500.0,0.00016575,2]
[351517157,1738612234859,-500.0,0.00016575,2]
[351517158,1738612234869,-500.44120524,0.00016575,2]
[351517159,1738612234878,-1810.1,0.00016575,2]
[351517160,1738612234888,-581.22211367,0.00016575,2]
[351517161,1738612234898,-500.0,0.00016575,2]
[351517162,1738612234909,-894.98,0.00016575,2]
[351517163,1738612234919,-500.0,0.00016575,2]
[351517164,1738612234930,-500.0,0.00016575,2]
[351517165,1738612234946,-500.0,0.00016575,2]
[351517166,1738612234956,-892.35,0.00016575,2]
[351517167,1738612234966,-2193.9,0.00016575,2]
[351517168,1738612234976,-500.0,0.00016575,2]
[351517169,1738612234986,-500.0,0.00016575,2]
[351517170,1738612234995,-500.0,0.00016575,2]
[351517171,1738612235006,-1260.08,0.00016575,2]
[351517172,1738612235016,-153.51507434,0.00016685,2]
[351517173,1738612235025,-3772.92,0.00016711,2]
[351517174,1738612235034,-500.0,0.00016711,2]
[351517175,1738612235044,-500.0,0.00016711,2]
[351517176,1738612235054,-546.94189065,0.00016712,2]
[351517177,1738612235065,-500.0,0.00016712,2]
[351517178,1738612235075,-1392.0,0.00016712,2]
[351517179,1738612235085,-500.0,0.00016712,2]
[351517180,1738612235095,-500.0,0.00016712,2]
[351517181,1738612235104,-500.0,0.00016712,2]
[351517182,1738612235114,-353.48697081,0.00016712,2]
[351517183,1738612235127,-146.51302919,0.00016712,2]
[351517184,1738612235136,-500.0,0.00016712,2]
[351517185,1738612235145,-746.02,0.00016712,2]
[351517186,1738612235155,-500.0,0.00016712,2]
[351517187,1738612235166,-671.43040776,0.00016712,2]
[351517188,1738612235177,-1319.35959224,0.00016712,2]
[351517189,1738612235190,-1319.11847152,0.00016712,2]
[351517250,1738612238790,-274.612,0.00016438,2]
[351517256,1738612238846,-45.02667029,0.00016438,2]
[351517258,1738612238857,-7289.88152848,0.00016712,2]
[351517260,1738612238867,-500.0,0.00016712,2]
[351517262,1738612238877,-500.57,0.00016712,2]
[351517264,1738612238887,-500.0,0.00016712,2]
[351517265,1738612238896,-500.0,0.00016712,2]
[351517268,1738612238906,-500.0,0.00016712,2]
[351517270,1738612238916,-799.29,0.00016712,2]
[351517272,1738612238926,-500.0,0.00016712,2]
[351517274,1738612238940,-528.23,0.00016712,2]
[351517276,1738612238950,-500.0,0.00016712,2]
[351517277,1738612238960,-500.0,0.00016712,2]
[351517292,1738612239122,-1205.91,0.00016712,2]
[351517294,1738612239133,-500.0,0.00016712,2]
[351517296,1738612239143,-500.0,0.00016712,2]
[351517299,1738612239154,-4371.18,0.00016712,2]
[351517301,1738612239165,-500.0,0.00016712,2]
[351517303,1738612239175,-621.16,0.00016712,2]
[351517305,1738612239184,-500.0,0.00016712,2]
[351517307,1738612239201,-694.09,0.00016712,2]
[351517309,1738612239212,-1810.1,0.00016712,2]
[351517311,1738612239223,-500.0,0.00016712,2]
[351517312,1738612239232,-894.98,0.00016712,2]
[351517315,1738612239243,-500.0,0.00016712,2]
[351517317,1738612239254,-500.0,0.00016712,2]
[351517319,1738612239264,-500.0,0.00016712,2]
[351517321,1738612239275,-2193.9,0.00016712,2]
[351517323,1738612239285,-892.35,0.00016712,2]
[351517325,1738612239295,-500.0,0.00016712,2]
[351517327,1738612239305,-500.0,0.00016712,2]
[351517328,1738612239315,-1260.08,0.00016712,2]
[351517329,1738612239324,-184.31961155,0.00016748,2]
[351517330,1738612239334,-154.0812575,0.000168,2]
[351517332,1738612239344,-18241.86286453,0.00016823,2]
[351517334,1738612239354,-184.31961154,0.00016824,2]
[351517337,1738612239364,-3772.92,0.00016848,2]
[351517339,1738612239375,-500.0,0.00016848,2]
[351517341,1738612239386,-500.0,0.00016848,2]
[351517343,1738612239396,-500.0,0.00016849,2]
[351517345,1738612239406,-1392.0,0.00016849,2]
[351517346,1738612239415,-500.0,0.00016849,2]
[351517349,1738612239425,-500.0,0.00016849,2]
[351517351,1738612239435,-500.0,0.00016849,2]
[351517352,1738612239452,-500.0,0.00016849,2]
[351517355,1738612239463,-746.02,0.00016849,2]
[351517356,1738612239472,-500.0,0.00016849,2]
[351517359,1738612239483,-1990.79,0.00016849,2]
[351517361,1738612239493,-8609.0,0.00016849,2]
[351517362,1738612239503,-500.0,0.00016849,2]
[351517365,1738612239514,-500.57,0.00016849,2]
[351517366,1738612239524,-86.7662391,0.00016849,2]
[351517382,1738612239642,-500.0,0.00016438,2]
[351517384,1738612239651,-500.0,0.00016575,2]
[351517386,1738612239662,-413.2337609,0.00016849,2]
[351517388,1738612239673,-500.0,0.00016849,2]
[351517390,1738612239682,-799.29,0.00016849,2]
[351517392,1738612239696,-500.0,0.00016849,2]
[351517394,1738612239706,-528.23,0.00016849,2]
[351517396,1738612239716,-500.0,0.00016849,2]
[351517398,1738612239726,-500.0,0.00016849,2]
[351517400,1738612239736,-1205.91,0.00016849,2]
[351517402,1738612239746,-500.0,0.00016849,2]
[351517404,1738612239756,-4371.18,0.00016849,2]
[351517406,1738612239768,-500.0,0.00016849,2]
[351517408,1738612239778,-621.16,0.00016849,2]
[351517410,1738612239787,-500.0,0.00016849,2]
[351517412,1738612239797,-694.09,0.00016849,2]
[351517414,1738612239808,-500.0,0.00016849,2]
[351517416,1738612239818,-894.98,0.00016849,2]
[351517418,1738612239828,-1810.1,0.00016849,2]
[351517420,1738612239838,-500.0,0.00016849,2]
[351517422,1738612239848,-500.0,0.00016849,2]
[351517424,1738612239859,-500.0,0.00016849,2]
[351517426,1738612239868,-2193.9,0.00016849,2]
[351517428,1738612239878,-892.35,0.00016849,2]
[351517430,1738612239887,-500.0,0.00016849,2]
[351517432,1738612239897,-500.0,0.00016849,2]
[351517434,1738612239906,-1260.08,0.00016849,2]
[351517436,1738612239915,-512.46888343,0.000169,2]
[351517438,1738612239925,-184.31961154,0.000169,2]
[351517440,1738612239934,-153.51507434,0.00016904,2]
[351517442,1738612239949,-153.51507434,0.00016904,2]
[351517444,1738612239959,-3772.92,0.00016985,2]
[351517446,1738612239968,-500.0,0.00016985,2]
[351517448,1738612239978,-500.0,0.00016985,2]
[351517450,1738612239987,-277.90676,0.00016986,2]
[351517452,1738612239997,-1392.0,0.00016986,2]
[351517454,1738612240006,-500.0,0.00016986,2]
[351517456,1738612240015,-500.0,0.00016986,2]
[351517458,1738612240025,-441.82,0.00016986,2]
[351517460,1738612240034,-500.0,0.00016986,2]
[351517462,1738612240043,-746.02,0.00016986,2]
[351517464,1738612240052,-500.0,0.00016986,2]
[351517466,1738612240062,-1990.79,0.00016986,2]
[351517468,1738612240072,-8609.0,0.00016986,2]
[351517470,1738612240081,-500.0,0.00016986,2]
[351517472,1738612240092,-500.57,0.00016986,2]
[351517474,1738612240102,-500.0,0.00016986,2]
[351517476,1738612240112,-500.0,0.00016986,2]
[351517478,1738612240121,-799.29,0.00016986,2]
[351517480,1738612240130,-500.0,0.00016986,2]
[351517482,1738612240139,-528.23,0.00016986,2]
[351517484,1738612240149,-500.0,0.00016986,2]
[351517486,1738612240159,-500.0,0.00016986,2]
[351517488,1738612240168,-1205.91,0.00016986,2]
[351517490,1738612240178,-500.0,0.00016986,2]
[351517492,1738612240187,-4371.18,0.00016986,2]
[351517494,1738612240198,-500.0,0.00016986,2]
[351517496,1738612240207,-621.16,0.00016986,2]
[351517498,1738612240217,-500.0,0.00016986,2]
[351517500,1738612240227,-694.09,0.00016986,2]
[351517502,1738612240236,-500.0,0.00016986,2]
[351517504,1738612240247,-894.98,0.00016986,2]
[351517506,1738612240256,-1810.1,0.00016986,2]
[351517508,1738612240267,-500.0,0.00016986,2]
[351517511,1738612240277,-500.0,0.00016986,2]
[351517513,1738612240286,-500.0,0.00016986,2]
[351517515,1738612240296,-2193.9,0.00016986,2]
[351517517,1738612240305,-892.35,0.00016986,2]
[351517519,1738612240314,-500.0,0.00016986,2]
[351517521,1738612240324,-1260.08,0.00016986,2]
[351517523,1738612240333,-500.0,0.00016999,2]
[351517525,1738612240342,-500.0,0.00016999,2]
[351517527,1738612240352,-354.03622739,0.00016999,2]
[351517529,1738612240361,-1593272.60805472,0.00017,2]
[351517530,1738612240371,-17226.88,0.00017,2]
[351517532,1738612240380,-512.4688834,0.00017011,2]
[351517534,1738612240389,-600.0,0.00017068,2]
[351517536,1738612240399,-435.15378689,0.00017115,2]
[351517538,1738612240409,-3772.92,0.00017122,2]
[351517541,1738612240419,-500.0,0.00017122,2]
[351517543,1738612240429,-500.0,0.00017122,2]
[351517545,1738612240442,-512.4688834,0.00017122,2]
[351517546,1738612240453,-1392.0,0.00017123,2]
[351517548,1738612240463,-500.0,0.00017123,2]
[351517550,1738612240473,-500.0,0.00017123,2]
[351517552,1738612240485,-455.48379189,0.00017123,2]
[351517554,1738612240494,-746.02,0.00017123,2]
[351517556,1738612240503,-500.0,0.00017123,2]
[351517558,1738612240514,-1990.79,0.00017123,2]
[351517560,1738612240523,-8609.0,0.00017123,2]
[351517562,1738612240536,-500.0,0.00017123,2]
[351517564,1738612240546,-500.57,0.00017123,2]
[351517566,1738612240556,-500.0,0.00017123,2]
[351517568,1738612240565,-500.0,0.00017123,2]
[351517570,1738612240575,-799.29,0.00017123,2]
[351517572,1738612240585,-524.96188372,0.00017123,2]
[351517574,1738612240594,-528.23,0.00017123,2]
[351517576,1738612240604,-500.0,0.00017123,2]
[351517578,1738612240614,-500.0,0.00017123,2]
[351517580,1738612240623,-1205.91,0.00017123,2]
[351517582,1738612240632,-257.57639462,0.00017123,2]
[351517584,1738612240643,-4371.18,0.00017123,2]
[351517586,1738612240652,-500.0,0.00017123,2]
[351517588,1738612240661,-621.16,0.00017123,2]
[351517589,1738612240670,-500.0,0.00017123,2]
[351517591,1738612240680,-694.09,0.00017123,2]
[351517592,1738612240693,-500.0,0.00017123,2]
[351517593,1738612240702,-894.98,0.00017123,2]
[351517594,1738612240711,-1810.1,0.00017123,2]
[351517595,1738612240721,-500.0,0.00017123,2]
[351517596,1738612240731,-500.0,0.00017123,2]
[351517597,1738612240740,-500.0,0.00017123,2]
[351517598,1738612240749,-2193.9,0.00017123,2]
[351517599,1738612240759,-892.35,0.00017123,2]
[351517600,1738612240769,-500.0,0.00017123,2]
[351517601,1738612240780,-1260.08,0.00017123,2]
[351517602,1738612240789,-153.51507434,0.00017123,2]
[351517603,1738612240798,-153.51507434,0.00017123,2]
[351517604,1738612240807,-4528.66268087,0.000172,2]
[351517605,1738612240818,-512.4688834,0.00017233,2]
[351517606,1738612240827,-3772.92,0.00017259,2]
[351517607,1738612240836,-500.0,0.00017259,2]
[351517608,1738612240846,-500.0,0.00017259,2]
[351517609,1738612240856,-223.962,0.0001726,2]
[351517610,1738612240867,-1392.0,0.0001726,2]
[351517611,1738612240876,-500.0,0.0001726,2]
[351517612,1738612240886,-500.0,0.0001726,2]
[351517613,1738612240896,-746.02,0.0001726,2]
[351517614,1738612240905,-500.0,0.0001726,2]
[351517615,1738612240914,-1990.79,0.0001726,2]
[351517616,1738612240922,-8609.0,0.0001726,2]
[351517617,1738612240931,-500.0,0.0001726,2]
[351517618,1738612240942,-500.57,0.0001726,2]
[351517619,1738612240952,-500.0,0.0001726,2]
[351517620,1738612240962,-500.0,0.0001726,2]
[351517621,1738612240971,-799.29,0.0001726,2]
[351517622,1738612240981,-528.23,0.0001726,2]
[351517623,1738612240990,-500.0,0.0001726,2]
[351517624,1738612240999,-500.0,0.0001726,2]
[351517626,1738612241009,-1205.91,0.0001726,2]
[351517628,1738612241018,-4371.18,0.0001726,2]
[351517630,1738612241028,-500.0,0.0001726,2]
[351517632,1738612241037,-621.16,0.0001726,2]
[351517634,1738612241047,-500.0,0.0001726,2]
[351517636,1738612241056,-694.09,0.0001726,2]
[351517638,1738612241065,-500.0,0.0001726,2]
[351517640,1738612241075,-894.98,0.0001726,2]
[351517642,1738612241084,-1810.1,0.0001726,2]
[351517644,1738612241095,-500.0,0.0001726,2]
[351517646,1738612241104,-500.0,0.0001726,2]
[351517648,1738612241113,-500.0,0.0001726,2]
[351517650,1738612241123,-2193.9,0.0001726,2]
[351517652,1738612241133,-892.35,0.0001726,2]
[351517654,1738612241145,-500.0,0.0001726,2]
[351517657,1738612241155,-1260.08,0.0001726,2]
[351517659,1738612241165,-768.6559825,0.0001728,2]
[351517661,1738612241174,-1462568.58,0.000173,15]
[351517663,1738612241184,-370.0766704,0.00017302,2]
[351517665,1738612241196,-153.51507434,0.00017342,2]
[351517667,1738612241206,-153.51507434,0.00017342,2]
[351517669,1738612241217,-512.4688834,0.00017344,2]
[351517671,1738612241226,-168.0,0.00017379,2]
[351517673,1738612241235,-168.0,0.00017379,2]
[351517675,1738612241244,-500.0,0.00017395,2]
[351517677,1738612241254,-3772.92,0.00017396,2]
[351517679,1738612241264,-500.0,0.00017396,2]
[351517681,1738612241273,-500.0,0.00017396,2]
[351517683,1738612241285,-151.0,0.00017397,2]
[351517685,1738612241294,-151.0,0.00017397,2]
[351517687,1738612241304,-151.0,0.00017397,2]
[351517689,1738612241314,-151.0,0.00017397,2]
[351517691,1738612241323,-1392.0,0.00017397,2]
[351517693,1738612241332,-500.0,0.00017397,2]
[351517695,1738612241341,-500.0,0.00017397,2]
[351517697,1738612241351,-746.02,0.00017397,2]
[351517699,1738612241360,-500.0,0.00017397,2]
[351517701,1738612241370,-1990.79,0.00017397,2]
[351517703,1738612241379,-8609.0,0.00017397,2]
[351517705,1738612241388,-571.37962579,0.00017397,2]
[351517707,1738612241398,-500.57,0.00017397,2]
[351517709,1738612241414,-500.0,0.00017397,2]
[351517711,1738612241423,-500.0,0.00017397,2]
[351517713,1738612241433,-799.29,0.00017397,2]
[351517715,1738612241444,-528.23,0.00017397,2]
[351517717,1738612241454,-500.0,0.00017397,2]
[351517719,1738612241464,-500.0,0.00017397,2]
[351517721,1738612241474,-1205.91,0.00017397,2]
[351517723,1738612241484,-4371.18,0.00017397,2]
[351517725,1738612241494,-500.0,0.00017397,2]
[351517727,1738612241504,-621.16,0.00017397,2]
[351517729,1738612241514,-500.0,0.00017397,2]
[351517731,1738612241525,-694.09,0.00017397,2]
[351517733,1738612241535,-500.0,0.00017397,2]
[351517735,1738612241546,-894.98,0.00017397,2]
[351517737,1738612241555,-1810.1,0.00017397,2]
[351517739,1738612241565,-500.0,0.00017397,2]
[351517741,1738612241575,-151.63,0.00017397,2]
[351517743,1738612241585,-500.0,0.00017397,2]
[351517745,1738612241595,-2193.9,0.00017397,2]
[351517747,1738612241604,-892.35,0.00017397,2]
[351517749,1738612241614,-500.0,0.00017397,2]
[351517751,1738612241624,-1260.08,0.00017397,2]
[351517753,1738612241634,-150.0,0.00017429,2]
[351517755,1738612241644,-537.0,0.00017429,2]
[351517757,1738612241654,-1994.0,0.00017429,2]
[351517759,1738612241663,-2299.0,0.00017429,2]
[351517761,1738612241674,-396.0,0.00017429,2]
[351517764,1738612241685,-463.43338475,0.0001744,2]
[351517766,1738612241697,-512.4688834,0.00017456,2]
[351517767,1738612241707,-156.0,0.00017469,2]
[351517769,1738612241717,-16391.9868021,0.000175,5]
[351517772,1738612241730,-151.0,0.000175,2]
[351517774,1738612241741,-151.0,0.000175,2]
[351517776,1738612241751,-151.0,0.000175,2]
[351517778,1738612241763,-151.0,0.000175,2]
[351517780,1738612241774,-151.0,0.000175,2]
[351517782,1738612241784,-151.0,0.000175,2]
[351517784,1738612241794,-151.0,0.000175,2]
[351517785,1738612241804,-232.343639,0.000175,2]
[351517787,1738612241815,-337.135415,0.000175,2]
[351517790,1738612241826,-337.135415,0.000175,2]
[351517792,1738612241836,-337.135415,0.000175,2]
[351517793,1738612241848,-337.135415,0.000175,2]
[351517795,1738612241858,-337.135415,0.000175,2]
[351517797,1738612241869,-337.135415,0.000175,2]
[351517799,1738612241879,-151.0,0.000175,2]
[351517801,1738612241890,-63869.66529254,0.000175,2]
[351517815,1738612242043,-500.0,0.00016438,2]
[351517817,1738612242053,-500.0,0.00016438,2]
[351517819,1738612242064,-500.0,0.00016712,2]
[351517821,1738612242075,-500.0,0.00016849,2]
[351517823,1738612242085,-500.0,0.00016986,2]
[351517825,1738612242095,-500.0,0.00017123,2]
[351517827,1738612242106,-118587.43572446,0.000175,2]
[351517829,1738612242119,-5065.0,0.000175,2]
[351517966,1738612243182,-500.0,0.00016438,2]
[351517968,1738612243194,-500.0,0.0001726,2]
[351517970,1738612243204,-200.0,0.00017397,2]
[351517974,1738612243236,-300.0,0.00017397,2]
[351517976,1738612243245,-709.0,0.000175,2]
[351517979,1738612243257,-307.9374484,0.000175,2]
[351517999,1738612243410,-995.67538918,0.000175,2]
[351520437,1738612270249,3760.0,0.00015012,2]
[351529891,1738613159010,359.957622,0.00015012,2]
[351529901,1738613210906,300.946918,0.00013973,2]
[351529902,1738613239346,466.0,0.00015012,2]
[351530300,1738613435842,-431.27736551,0.00015399,2]
[351530510,1738613438378,-272.08,0.00015399,2]
[351530513,1738613438390,-500.0,0.00015399,2]
[351530518,1738613438434,-502.33983151,0.00015399,2]
[351530523,1738613438447,-497.66016849,0.00015463,2]
[351530915,1738613442358,-1494.16633011,0.00015463,2]
[351530917,1738613442367,-186.924812,0.00015555,2]
[351530919,1738613442377,-2523.15313651,0.00016008,2]
[351530921,1738613442387,-386.08140088,0.00016437,2]
[351530923,1738613442396,-300.0,0.00016437,2]
[351530926,1738613442406,-500.0,0.00016438,2]
[351530928,1738613442415,-500.0,0.00016438,2]
[351530930,1738613442424,-500.0,0.00016438,2]
[351530932,1738613442434,-500.0,0.00016438,2]
[351530934,1738613442443,-500.0,0.00016438,2]
[351530936,1738613442452,-601.27834216,0.00016438,2]
[351530938,1738613442462,-500.0,0.00016438,2]
[351530940,1738613442471,-513.7883702,0.00016438,2]
[351530942,1738613442480,-500.0,0.00016438,2]
[351530944,1738613442489,-187.39233916,0.00016438,2]
[351530946,1738613442499,-607.6328422,0.00016438,2]
[351530948,1738613442508,-200.79496731,0.00016438,2]
[351530950,1738613442517,-500.0,0.00016438,2]
[351530952,1738613442528,-531.25175389,0.00016438,2]
[351530954,1738613442537,-500.0,0.00016438,2]
[351530955,1738613442547,-500.0,0.00016438,2]
[351530957,1738613442556,-500.0,0.00016438,2]
[351530959,1738613442566,-500.0,0.00016438,2]
[351530962,1738613442575,-188.974048,0.00016438,2]
[351530963,1738613442585,-463.37000222,0.00016438,2]
[351530966,1738613442595,-500.0,0.00016438,2]
[351530968,1738613442604,-500.0,0.00016438,2]
[351530970,1738613442613,-500.0,0.00016438,2]
[351530972,1738613442623,-500.0,0.00016438,2]
[351530974,1738613442632,-500.0,0.00016438,2]
[351530976,1738613442641,-606.29413628,0.00016438,2]
[351530978,1738613442650,-500.0,0.00016438,2]
[351530979,1738613442659,-360.81873424,0.00016438,2]
[351530981,1738613442669,-604.16,0.00016438,2]
[351530983,1738613442678,-500.0,0.00016438,2]
[351530986,1738613442690,-500.0,0.00016438,2]
[351530988,1738613442700,-501.44546254,0.00016438,2]
[351530989,1738613442709,-46.73605628,0.00016438,2]
[351530992,1738613442722,-453.26394372,0.00016438,2]
[351530994,1738613442731,-500.0,0.00016438,2]
[351530996,1738613442741,-500.0,0.00016438,2]
[351530999,1738613442752,-626.87,0.00016438,2]
[351531002,1738613442762,-500.0,0.00016438,2]
[351531004,1738613442771,-500.0,0.00016438,2]
[351531007,1738613442783,-500.0,0.00016438,2]
[351531009,1738613442792,-197.7853657,0.00016438,2]
[351531012,1738613442804,-313.86161578,0.00016438,2]
[351531014,1738613442813,-500.0,0.00016438,2]
[351531016,1738613442823,-511.03360105,0.00016438,2]
[351531018,1738613442832,-500.0,0.00016438,2]
[351531021,1738613442841,-500.0,0.00016438,2]
[351531024,1738613442851,-500.0,0.00016438,2]
[351531027,1738613442860,-500.0,0.00016438,2]
[351531030,1738613442870,-500.0,0.00016438,2]
[351531032,1738613442879,-500.0,0.00016438,2]
[351531035,1738613442889,-500.0,0.00016438,2]
[351531037,1738613442898,-500.0,0.00016438,2]
[351531041,1738613442908,-500.0,0.00016438,2]
[351531044,1738613442918,-500.0,0.00016438,2]
[351531049,1738613442928,-500.0,0.00016438,2]
[351531054,1738613442937,-500.0,0.00016438,2]
[351531058,1738613442947,-500.0,0.00016438,2]
[351531063,1738613442957,-500.0,0.00016438,2]
[351531067,1738613442967,-500.0,0.00016438,2]
[351531072,1738613442976,-500.0,0.00016438,2]
[351531075,1738613442986,-500.0,0.00016438,2]
[351531077,1738613442995,-500.0,0.00016438,2]
[351531080,1738613443004,-500.0,0.00016438,2]
[351531082,1738613443014,-649.54245572,0.00016438,2]
[351531085,1738613443023,-500.0,0.00016438,2]
[351531089,1738613443035,-500.0,0.00016438,2]
[351531092,1738613443044,-500.0,0.00016438,2]
[351531095,1738613443053,-353.57322542,0.00016438,2]
[351531098,1738613443064,-500.0,0.00016438,2]
[351531101,1738613443074,-500.0,0.00016438,2]
[351531103,1738613443083,-500.0,0.00016438,2]
[351531106,1738613443092,-1984.61,0.00016438,2]
[351531109,1738613443102,-500.0,0.00016438,2]
[351531111,1738613443111,-500.0,0.00016438,2]
[351531114,1738613443120,-500.0,0.00016438,2]
[351531117,1738613443130,-316.84474611,0.00016438,2]
[351531119,1738613443140,-500.0,0.00016438,2]
[351531121,1738613443150,-353.02387664,0.00016438,2]
[351531123,1738613443160,-500.0,0.00016438,2]
[351531125,1738613443172,-500.0,0.00016438,2]
[351531127,1738613443183,-500.0,0.00016438,2]
[351531129,1738613443193,-500.0,0.00016438,2]
[351531131,1738613443203,-500.0,0.00016438,2]
[351531133,1738613443212,-500.0,0.00016438,2]
[351531135,1738613443221,-500.0,0.00016438,2]
[351531137,1738613443231,-523.50836409,0.00016438,2]
[351531138,1738613443242,-500.0,0.00016438,2]
[351531140,1738613443253,-500.0,0.00016438,2]
[351531142,1738613443263,-500.0,0.00016438,2]
[351531144,1738613443272,-500.0,0.00016438,2]
[351531146,1738613443291,-345.91555094,0.00016438,2]
[351531148,1738613443301,-500.0,0.00016438,2]
[351531150,1738613443311,-500.0,0.00016438,2]